Workbook

Sheet Instructions
A1: Théorie des jeux - Hauts salaires
A2: Instructions pour l’évaluation du jeu éducatif sur les salaires des dirigeants
A4: Remarque: Les règles du jeu se trouvent dans le document «Règles du jeu sur les salaires des dirigeants». Nous nous contentons d’expliquer ici les différentes étapes de l’évaluation du jeu. Les données de base du jeu se trouvent à l’onglet «Données de base».
A8: Si vous avez déjà joué une première partie, vous devez remettre le jeu à zéro:
A11: 1re étape: Après concertation au sein des groupes, l’enseignant (ou les élèves eux-mêmes) indique, pour la 1re année, l’offre maximale de l’entreprise considérée pour chacun des quatre dirigeants du «Formulaire pour les élèves» à l’onglet correspondant de chaque entreprise (Entreprise A à E). Commencez par l’entreprise A et passez à l’entreprise suivante en cliquant sur le bouton vert.
A26: 2e étape: Après avoir indiqué l’offre pour la 1re année pour toutes les entreprises, vous vous trouvez à l’onglet de l’entreprise E et pouvez alors procéder à l’affectation des dirigeants/-es (pour la 1re année) en cliquant sur le bouton vert correspondant.
B30: a) Toutes les offres des entreprises A à E ont été automatiquement reportées dans le premier tableau «Offres». L’offre maximale respective est déterminée pour chacune des dirigeantes et chacun des dirigeants, en commençant par celui qui génère les bénéfices bruts les plus élevés (Albert Adam). Si l’entreprise a engagé un dirigeant ou une dirigeante, elle n’est plus en lice pour les dirigeants suivants (moins bons). Ceci est mis en évidence par le fait que les offres sont alors barrées. Si aucune des cellules n’est surlignée en rouge, vous pouvez passer les trois points suivants (b,c et d).
B36: b) Si plusieurs maxima sont identiques, les cellules sont alors surlignées en rouge. Conformément aux règles du jeu, il faut alors procéder à un tirage au sort. Cliquez alors sur les tirages au sort nécessaires. Un chiffre aléatoire entre 0 et 1 est alors attribué aux entreprises ayant émis la même offre. Est gagnante l’entreprise qui obtient le chiffre le plus élevé.
B40: Exemple: Dans le cas présent, vous devez commencer par un tirage au sort pour Claudia Custer puis un pour Dieter Diem. Si vous devez procéder à plusieurs tirage au sort, commencez toujours par celui pour la dirigeante ou le dirigeant qui génère les bénéfices bruts les plus élevés (Albert Adam > Bertha Binnig > Claudia Custer > Dieter Diem).
B45: c) Dans le tableau Chiffres aléatoires, les chiffres obtenus par tirage au sort sont surlignés en jaune.
B54: d) Lorsque tous les tirages au sort ont été effectués, cela est indiqué en conséquence.
B63: e) Dans les tableaux «Classement» et «Offres», l’offre la plus élevée est surlignée en vert. f) Le tableau «Affectation» en bas à droite résume les entreprises les plus offrantes et les offres correspondantes. g) Pour procéder à l’évaluation correspondante, cliquez de nouveau sur le bouton vert.
A73: 3e étape: Les salaires les plus élevés des dirigeants par manche sont résumés à l’onglet «Evaluation des salaires des dirigeants».
A78: 4e étape: Les bénéfices nets et bruts correspondants pour chacune des entreprises ainsi que les rendements des capitaux sont calculés automatiquement et affichés à l’onglet «Evaluation des entreprises». Cet onglet sert donc de proposition de solution pour le tableau de la page 2 du «Formulaire pour les élèves».
A84: 5e étape: Répétez ces opérations (étapes 1 à 4) jusqu’à ce que les 4 périodes (années) aient été jouées. Comme cela est indiqué dans les règles du jeu, les données de base et, particulièrement, le capital n’évoluent pas pendant le jeu, c’est-à-dire que les bénéfices sont intégralement distribués à la fin de chaque année.
A88: 6e étape: Les résultats, toutes années confondues, sont représentés schématiquement à l’onglet «Graphiques». Ces graphiques peuvent servir de base pour une discussion finale.
A91: Remarque: La solution optimale d’après la théorie des jeux est présentée à l’onglet de la propositions de solutions (cf. Exercice 2 du set d’exercices).

Sheet Données de base
A1: Théorie des jeux - Hauts salaires
A2: Données de base du jeu éducatif sur les salaires des dirigeants
A4: Marché des dirigeants
A5: Dirigeants | B5: Bénéfices bruts (en % du capital de l’entreprise) | C5: Salaire annuel
A6: Albert Adam | B6: 0.14 | C6: à négocier
A7: Bertha Binnig | B7: 0.13 | C7: à négocier
A8: Claudia Custer | B8: 0.12 | C8: à négocier
A9: Dieter Diem | B9: 0.11 | C9: à négocier
A10: Cadre dirigeant/-e normal/-e | B10: 0.1 | C10: 300000
A12: Capitalisation des entreprises
A13: Entreprise | B13: Capitalisation
A14: Entreprise A | B14: 5000000
A15: Entreprise B | B15: 10000000
A16: Entreprise C | B16: 30000000
A17: Entreprise D | B17: 400000000
A18: Entreprise E | B18: 7000000000

Sheet Entreprise A
A1: Théorie des jeux - Hauts salaires
A2: Jeu éducatif sur les salaires des dirigeants - Offres de l’entreprise A
A4: Capitalisation: | B4: ='Données de base'!B14 -> 5000000
A6: 1re année | B6: Dirigeant-e | C6: Salaire annuel | E6: 3e année | F6: Dirigeant-e | G6: Salaire annuel
B7: Albert Adam | F7: Albert Adam
B8: Bertha Binnig | F8: Bertha Binnig
B9: Claudia Custer | F9: Claudia Custer
B10: Dieter Diem | F10: Dieter Diem
B11: Cadre dirigeant/-e normal/-e | C11: ='Données de base'!C10 -> 300000 | F11: Cadre dirigeant/-e normal/-e | G11: ='Données de base'!C10 -> 300000
A13: 2e année | B13: Dirigeant-e | C13: Salaire annuel | E13: 4e année | F13: Dirigeant-e | G13: Salaire annuel
B14: Albert Adam | F14: Albert Adam
B15: Bertha Binnig | F15: Bertha Binnig
B16: Claudia Custer | F16: Claudia Custer
B17: Dieter Diem | F17: Dieter Diem
B18: Cadre dirigeant/-e normal/-e | C18: ='Données de base'!C10 -> 300000 | F18: Cadre dirigeant/-e normal/-e | G18: ='Données de base'!C10 -> 300000
B22: Retour au mode d’emploi | F22: Passer à l’entreprise B

Sheet Entreprise B
A1: Théorie des jeux - Hauts salaires
A2: Jeu éducatif sur les salaires des dirigeants - Offres de l’entreprise B
A4: Capitalisation: | B4: ='Données de base'!B15 -> 10000000
A6: 1re année | B6: Dirigeant-e | C6: Salaire annuel | E6: 3e année | F6: Dirigeant-e | G6: Salaire annuel
B7: Albert Adam | F7: Albert Adam
B8: Bertha Binnig | F8: Bertha Binnig
B9: Claudia Custer | F9: Claudia Custer
B10: Dieter Diem | F10: Dieter Diem
B11: Cadre dirigeant/-e normal/-e | C11: ='Données de base'!C10 -> 300000 | F11: Cadre dirigeant/-e normal/-e | G11: ='Données de base'!C10 -> 300000
A13: 2e année | B13: Dirigeant-e | C13: Salaire annuel | E13: 4e année | F13: Dirigeant-e | G13: Salaire annuel
B14: Albert Adam | F14: Albert Adam
B15: Bertha Binnig | F15: Bertha Binnig
B16: Claudia Custer | F16: Claudia Custer
B17: Dieter Diem | F17: Dieter Diem
B18: Cadre dirigeant/-e normal/-e | C18: ='Données de base'!C10 -> 300000 | F18: Cadre dirigeant/-e normal/-e | G18: ='Données de base'!C10 -> 300000
B22: Retour au mode d’emploi | F22: Passer à l’entreprise C

Sheet Entreprise C
A1: Théorie des jeux - Hauts salaires
A2: Jeu éducatif sur les salaires des dirigeants - Offres de l’entreprise C
A4: Capitalisation: | B4: ='Données de base'!B16 -> 30000000
A6: 1re année | B6: Dirigeant-e | C6: Salaire annuel | E6: 3e année | F6: Dirigeant-e | G6: Salaire annuel
B7: Albert Adam | F7: Albert Adam
B8: Bertha Binnig | F8: Bertha Binnig
B9: Claudia Custer | F9: Claudia Custer
B10: Dieter Diem | F10: Dieter Diem
B11: Cadre dirigeant/-e normal/-e | C11: ='Données de base'!C10 -> 300000 | F11: Cadre dirigeant/-e normal/-e | G11: ='Données de base'!C10 -> 300000
A13: 2e année | B13: Dirigeant-e | C13: Salaire annuel | E13: 4e année | F13: Dirigeant-e | G13: Salaire annuel
B14: Albert Adam | F14: Albert Adam
B15: Bertha Binnig | F15: Bertha Binnig
B16: Claudia Custer | F16: Claudia Custer
B17: Dieter Diem | F17: Dieter Diem
B18: Cadre dirigeant/-e normal/-e | C18: ='Données de base'!C10 -> 300000 | F18: Cadre dirigeant/-e normal/-e | G18: ='Données de base'!C10 -> 300000
B22: Retour au mode d’emploi | F22: Passer à l’entreprise D

Sheet Entreprise D
A1: Théorie des jeux - Hauts salaires
A2: Jeu éducatif sur les salaires des dirigeants - Offres de l’entreprise D
A4: Capitalisation: | B4: ='Données de base'!B17 -> 400000000
A6: 1re année | B6: Dirigeant-e | C6: Salaire annuel | E6: 3e année | F6: Dirigeant-e | G6: Salaire annuel
B7: Albert Adam | F7: Albert Adam
B8: Bertha Binnig | F8: Bertha Binnig
B9: Claudia Custer | F9: Claudia Custer
B10: Dieter Diem | F10: Dieter Diem
B11: Cadre dirigeant/-e normal/-e | C11: ='Données de base'!C10 -> 300000 | F11: Cadre dirigeant/-e normal/-e | G11: ='Données de base'!C10 -> 300000
A13: 2e année | B13: Dirigeant-e | C13: Salaire annuel | E13: 4e année | F13: Dirigeant-e | G13: Salaire annuel
B14: Albert Adam | F14: Albert Adam
B15: Bertha Binnig | F15: Bertha Binnig
B16: Claudia Custer | F16: Claudia Custer
B17: Dieter Diem | F17: Dieter Diem
B18: Cadre dirigeant/-e normal/-e | C18: ='Données de base'!C10 -> 300000 | F18: Cadre dirigeant/-e normal/-e | G18: ='Données de base'!C10 -> 300000
B22: Retour au mode d’emploi | F22: Passer à l’entreprise E

Sheet Entreprise E
A1: Théorie des jeux - Hauts salaires
A2: Jeu éducatif sur les salaires des dirigeants - Offres de l’entreprise E
A4: Capitalisation: | B4: ='Données de base'!B18 -> 7000000000
A6: 1re année | B6: Dirigeant-e | C6: Salaire annuel | E6: 3e année | F6: Dirigeant-e | G6: Salaire annuel
B7: Albert Adam | F7: Albert Adam
B8: Bertha Binnig | F8: Bertha Binnig
B9: Claudia Custer | F9: Claudia Custer
B10: Dieter Diem | F10: Dieter Diem
B11: Cadre dirigeant/-e normal/-e | C11: ='Données de base'!C10 -> 300000 | F11: Cadre dirigeant/-e normal/-e | G11: ='Données de base'!C10 -> 300000
A13: 2e année | B13: Dirigeant-e | C13: Salaire annuel | E13: 4e année | F13: Dirigeant-e | G13: Salaire annuel
B14: Albert Adam | F14: Albert Adam
B15: Bertha Binnig | F15: Bertha Binnig
B16: Claudia Custer | F16: Claudia Custer
B17: Dieter Diem | F17: Dieter Diem
B18: Cadre dirigeant/-e normal/-e | C18: ='Données de base'!C10 -> 300000 | F18: Cadre dirigeant/-e normal/-e | G18: ='Données de base'!C10 -> 300000
B22: Retour au mode d’emploi | F22: Aller à l’affectation des dirigeants pour la 1re année
F24: Aller à l’affectation des dirigeants pour la 2e année
F26: Aller à l’affectation des dirigeants pour la 3e année
F28: Aller à l’affectation des dirigeants pour la 4e année

Sheet 1re année
A1: Théorie des jeux - Hauts salaires
A2: Jeu éducatif sur les salaires des dirigeants - Affectation des dirigeants (1re année)
A4: Offres la 1re année | B4: Entreprise A | C4: Entreprise B | D4: Entreprise C | E4: Entreprise D | F4: Entreprise E | H4: Maximum | I4: # Maxima | J4: Tirage au sort
A5: Albert Adam | B5: ='Entreprise A'!C7 -> 0 | C5: ='Entreprise B'!C7 -> 0 | D5: ='Entreprise C'!C7 -> 0 | E5: ='Entreprise D'!C7 -> 0 | F5: ='Entreprise E'!C7 -> 0 | H5: =MAX(B5:F5) -> 0 | I5: =COUNTIF(B5:F5,H5) -> 5 | J5: =IF(I5>1,"OUI","NON") -> OUI | K5: NON
A6: Bertha Binnig | B6: ='Entreprise A'!C8 -> 0 | C6: ='Entreprise B'!C8 -> 0 | D6: ='Entreprise C'!C8 -> 0 | E6: ='Entreprise D'!C8 -> 0 | F6: ='Entreprise E'!C8 -> 0 | H6: =MAX(IF(B31:F31>1,IF(ISNUMBER(B31:F31)=TRUE,B6:F6))) -> 0 | I6: =COUNTIFS(B6:F6,H6,B31:F31,"<>1",B31:F31,"<>NA") -> 0 | J6: =IF(I6>1,"OUI","NON") -> NON | K6: NON
A7: Claudia Custer | B7: ='Entreprise A'!C9 -> 0 | C7: ='Entreprise B'!C9 -> 0 | D7: ='Entreprise C'!C9 -> 0 | E7: ='Entreprise D'!C9 -> 0 | F7: ='Entreprise E'!C9 -> 0 | H7: =MAX(IF(B32:F32>1,IF(ISNUMBER(B32:F32)=TRUE,B7:F7))) -> 0 | I7: =COUNTIFS(B7:F7,H7,B32:F32,"<>1",B32:F32,"<>NA") -> 0 | J7: =IF(I7>1,"OUI","NON") -> NON | K7: NON
A8: Dieter Diem | B8: ='Entreprise A'!C10 -> 0 | C8: ='Entreprise B'!C10 -> 0 | D8: ='Entreprise C'!C10 -> 0 | E8: ='Entreprise D'!C10 -> 0 | F8: ='Entreprise E'!C10 -> 0 | H8: =MAX(IF(B33:F33>1,IF(ISNUMBER(B33:F33)=TRUE,B8:F8))) -> 0 | I8: =COUNTIFS(B8:F8,H8,B33:F33,"<>1",B33:F33,"<>NA") -> 0 | J8: =IF(I8>1,"OUI","NON") -> NON | K8: NON
A9: Cadre dirigeant/-e normal/-e | B9: ='Entreprise A'!C11 -> 300000 | C9: ='Entreprise B'!C11 -> 300000 | D9: ='Entreprise C'!C11 -> 300000 | E9: ='Entreprise D'!C11 -> 300000 | F9: ='Entreprise E'!C11 -> 300000 | H9: =IF(K9=0,"Vous n'avez pas / plus besoin de faire de tirage au sort!","Vous devez procéder à encore un tirage au sort au moins!") -> Vous devez procéder à encore un tirage au sort au moins! | K9: =IF(OR(J5="OUI",J6="OUI",J7="OUI",J8="OUI"),IF(J5=K5,IF(J6=K6,IF(J7=K7,IF(J8=K8,0,1),1),1),1),0) -> 1
A11: Zufallszahlen im 1. Jahr | B11: Firma A | C11: Firma B | D11: Firma C | E11: Firma D | F11: Firma E
A12: Albert Adam | B12: =IF(AND(B5=$H$5,$I$5>1),RAND(),"") -> 0.5995975127 | C12: =IF(AND(C5=$H$5,$I$5>1),RAND(),"") -> 0.8209892094 | D12: =IF(AND(D5=$H$5,$I$5>1),RAND(),"") -> 0.7457183505 | E12: =IF(AND(E5=$H$5,$I$5>1),RAND(),"") -> 0.7844205659 | F12: =IF(AND(F5=$H$5,$I$5>1),RAND(),"") -> 0.614852516
A13: Bertha Binnig | B13: =IF(AND(B6=$H$6,$I$6>1,B31>1,B31<>"na"),RAND(),"") ->  | C13: =IF(AND(C6=$H$6,$I$6>1,C31>1,C31<>"na"),RAND(),"") ->  | D13: =IF(AND(D6=$H$6,$I$6>1,D31>1,D31<>"na"),RAND(),"") ->  | E13: =IF(AND(E6=$H$6,$I$6>1,E31>1,E31<>"na"),RAND(),"") ->  | F13: =IF(AND(F6=$H$6,$I$6>1,F31>1,F31<>"na"),RAND(),"") -> 
A14: Claudia Custer | B14: =IF(AND(B7=$H$7,$I$7>1,B32>1,B32<>"na"),RAND(),"") ->  | C14: =IF(AND(C7=$H$7,$I$7>1,C32>1,C32<>"na"),RAND(),"") ->  | D14: =IF(AND(D7=$H$7,$I$7>1,D32>1,D32<>"na"),RAND(),"") ->  | E14: =IF(AND(E7=$H$7,$I$7>1,E32>1,E32<>"na"),RAND(),"") ->  | F14: =IF(AND(F7=$H$7,$I$7>1,F32>1,F32<>"na"),RAND(),"") -> 
A15: Dieter Diem | B15: =IF(AND(B8=$H$8,$I$8>1,B33>1,B33<>"na"),RAND(),"") ->  | C15: =IF(AND(C8=$H$8,$I$8>1,C33>1,C33<>"na"),RAND(),"") ->  | D15: =IF(AND(D8=$H$8,$I$8>1,D33>1,D33<>"na"),RAND(),"") ->  | E15: =IF(AND(E8=$H$8,$I$8>1,E33>1,E33<>"na"),RAND(),"") ->  | F15: =IF(AND(F8=$H$8,$I$8>1,F33>1,F33<>"na"),RAND(),"") -> 
A17: Chiffres aléatoires la 1re année | B17: Entreprise A | C17: Entreprise B | D17: Entreprise C | E17: Entreprise D | F17: Entreprise E
A18: Albert Adam
A19: Bertha Binnig
A20: Claudia Custer
A21: Dieter Diem
A23: Angebote* im 1. Jahr | B23: Firma A | C23: Firma B | D23: Firma C | E23: Firma D | F23: Firma E
A24: Albert Adam | B24: =IF(AND($I$5>1,B5=$H$5),B5+1*B18,B5) -> 0 | C24: =IF(AND($I$5>1,C5=$H$5),C5+1*C18,C5) -> 0 | D24: =IF(AND($I$5>1,D5=$H$5),D5+1*D18,D5) -> 0 | E24: =IF(AND($I$5>1,E5=$H$5),E5+1*E18,E5) -> 0 | F24: =IF(AND($I$5>1,F5=$H$5),F5+1*F18,F5) -> 0
A25: Bertha Binnig | B25: =IF(AND($I$6>1,B6=$H$6),B6+1*B19,B6) -> 0 | C25: =IF(AND($I$6>1,C6=$H$6),C6+1*C19,C6) -> 0 | D25: =IF(AND($I$6>1,D6=$H$6),D6+1*D19,D6) -> 0 | E25: =IF(AND($I$6>1,E6=$H$6),E6+1*E19,E6) -> 0 | F25: =IF(AND($I$6>1,F6=$H$6),F6+1*F19,F6) -> 0
A26: Claudia Custer | B26: =IF(AND($I$7>1,B7=$H$7),B7+1*B20,B7) -> 0 | C26: =IF(AND($I$7>1,C7=$H$7),C7+1*C20,C7) -> 0 | D26: =IF(AND($I$7>1,D7=$H$7),D7+1*D20,D7) -> 0 | E26: =IF(AND($I$7>1,E7=$H$7),E7+1*E20,E7) -> 0 | F26: =IF(AND($I$7>1,F7=$H$7),F7+1*F20,F7) -> 0
A27: Dieter Diem | B27: =IF(AND($I$8>1,B8=$H$8),B8+1*B21,B8) -> 0 | C27: =IF(AND($I$8>1,C8=$H$8),C8+1*C21,C8) -> 0 | D27: =IF(AND($I$8>1,D8=$H$8),D8+1*D21,D8) -> 0 | E27: =IF(AND($I$8>1,E8=$H$8),E8+1*E21,E8) -> 0 | F27: =IF(AND($I$8>1,F8=$H$8),F8+1*F21,F8) -> 0
A28: Normal | B28: =B9 -> 300000 | C28: =C9 -> 300000 | D28: =D9 -> 300000 | E28: =E9 -> 300000 | F28: =F9 -> 300000
A30: Classement la 1re année | B30: Entreprise A | C30: Entreprise B | D30: Entreprise C | E30: Entreprise D | F30: Entreprise E
A31: Albert Adam | B31: =RANK(B24,$B$24:$F$24) -> 1 | C31: =RANK(C24,$B$24:$F$24) -> 1 | D31: =RANK(D24,$B$24:$F$24) -> 1 | E31: =RANK(E24,$B$24:$F$24) -> 1 | F31: =RANK(F24,$B$24:$F$24) -> 1
A32: Bertha Binnig | B32: =IF(AND(B$31>1,B$31<>"NA"),COUNTIFS($B$25:$F$25,">"&B25,$B$31:$F$31,">"&1)+1,"NA") -> NA | C32: =IF(AND(C$31>1,C$31<>"NA"),COUNTIFS($B$25:$F$25,">"&C25,$B$31:$F$31,">"&1)+1,"NA") -> NA | D32: =IF(AND(D$31>1,D$31<>"NA"),COUNTIFS($B$25:$F$25,">"&D25,$B$31:$F$31,">"&1)+1,"NA") -> NA | E32: =IF(AND(E$31>1,E$31<>"NA"),COUNTIFS($B$25:$F$25,">"&E25,$B$31:$F$31,">"&1)+1,"NA") -> NA | F32: =IF(AND(F$31>1,F$31<>"NA"),COUNTIFS($B$25:$F$25,">"&F25,$B$31:$F$31,">"&1)+1,"NA") -> NA
A33: Claudia Custer | B33: =IF(AND(B$32>1,B$32<>"NA"),COUNTIFS($B$26:$F$26,">"&B26,$B$32:$F$32,">"&1)+1,"NA") -> NA | C33: =IF(AND(C$32>1,C$32<>"NA"),COUNTIFS($B$26:$F$26,">"&C26,$B$32:$F$32,">"&1)+1,"NA") -> NA | D33: =IF(AND(D$32>1,D$32<>"NA"),COUNTIFS($B$26:$F$26,">"&D26,$B$32:$F$32,">"&1)+1,"NA") -> NA | E33: =IF(AND(E$32>1,E$32<>"NA"),COUNTIFS($B$26:$F$26,">"&E26,$B$32:$F$32,">"&1)+1,"NA") -> NA | F33: =IF(AND(F$32>1,F$32<>"NA"),COUNTIFS($B$26:$F$26,">"&F26,$B$32:$F$32,">"&1)+1,"NA") -> NA
A34: Dieter Diem | B34: =IF(AND(B$33>1,B$33<>"NA"),COUNTIFS($B$27:$F$27,">"&B27,$B$33:$F$33,">"&1)+1,"NA") -> NA | C34: =IF(AND(C$33>1,C$33<>"NA"),COUNTIFS($B$27:$F$27,">"&C27,$B$33:$F$33,">"&1)+1,"NA") -> NA | D34: =IF(AND(D$33>1,D$33<>"NA"),COUNTIFS($B$27:$F$27,">"&D27,$B$33:$F$33,">"&1)+1,"NA") -> NA | E34: =IF(AND(E$33>1,E$33<>"NA"),COUNTIFS($B$27:$F$27,">"&E27,$B$33:$F$33,">"&1)+1,"NA") -> NA | F34: =IF(AND(F$33>1,F$33<>"NA"),COUNTIFS($B$27:$F$27,">"&F27,$B$33:$F$33,">"&1)+1,"NA") -> NA
A35: Cadre dirigeant/-e normal/-e | B35: =IF(AND(B$34>1,B$34<>"NA"),COUNTIFS($B$28:$F$28,">"&B28,$B$34:$F$34,">"&1)+1,"NA") -> NA | C35: =IF(AND(C$34>1,C$34<>"NA"),COUNTIFS($B$28:$F$28,">"&C28,$B$34:$F$34,">"&1)+1,"NA") -> NA | D35: =IF(AND(D$34>1,D$34<>"NA"),COUNTIFS($B$28:$F$28,">"&D28,$B$34:$F$34,">"&1)+1,"NA") -> NA | E35: =IF(AND(E$34>1,E$34<>"NA"),COUNTIFS($B$28:$F$28,">"&E28,$B$34:$F$34,">"&1)+1,"NA") -> NA | F35: =IF(AND(F$34>1,F$34<>"NA"),COUNTIFS($B$28:$F$28,">"&F28,$B$34:$F$34,">"&1)+1,"NA") -> NA
A37: Offres la 1re année | B37: Entreprise A | C37: Entreprise B | D37: Entreprise C | E37: Entreprise D | F37: Entreprise E | H37: Affectation | I37: Entreprise | J37: Salaire annuel
A38: Albert Adam | B38: =B5 -> 0 | C38: 0 | D38: 0 | E38: 0 | F38: 0 | H38: Albert Adam | I38: =INDEX($B$30:$F$30,MATCH(1,B31:F31,0)) -> Entreprise A | J38: =INDEX(B5:F5,MATCH(I38,$B$4:$F$4,0)) -> 0 | M38: Retour au mode d’emploi
A39: Bertha Binnig | B39: 0 | C39: 0 | D39: 0 | E39: 0 | F39: 0 | H39: Bertha Binnig | I39: =INDEX($B$30:$F$30,MATCH(1,B32:F32,0)) ->  | J39: =INDEX(B6:F6,MATCH(I39,$B$4:$F$4,0)) -> 
A40: Claudia Custer | B40: 0 | C40: 0 | D40: 0 | E40: 0 | F40: 0 | H40: Claudia Custer | I40: =INDEX($B$30:$F$30,MATCH(1,B33:F33,0)) ->  | J40: =INDEX(B7:F7,MATCH(I40,$B$4:$F$4,0)) -> 
A41: Dieter Diem | B41: 0 | C41: 0 | D41: 0 | E41: 0 | F41: 0 | H41: Dieter Diem | I41: =INDEX($B$30:$F$30,MATCH(1,B34:F34,0)) ->  | J41: =INDEX(B8:F8,MATCH(I41,$B$4:$F$4,0)) -> 
A42: Cadre dirigeant/-e normal/-e | B42: 300000 | C42: 300000 | D42: 300000 | E42: 300000 | F42: 300000 | H42: Cadre dirigeant/-e normal/-e | I42: =INDEX($B$30:$F$30,MATCH(1,B35:F35,0)) ->  | J42: =INDEX(B9:F9,MATCH(I42,$B$4:$F$4,0)) ->  | M42: Passer à l’évaluation des salaires des dirigeants

Sheet 2e année
A1: Théorie des jeux - Hauts salaires
A2: Jeu éducatif sur les salaires des dirigeants - Affectation des dirigeants (2e année)
A4: Offres la 2e année | B4: Entreprise A | C4: Entreprise B | D4: Entreprise C | E4: Entreprise D | F4: Entreprise E | H4: Maximum | I4: # Maxima | J4: Tirage au sort
A5: Albert Adam | B5: ='Entreprise A'!C14 -> 0 | C5: ='Entreprise B'!C14 -> 0 | D5: ='Entreprise C'!C14 -> 0 | E5: ='Entreprise D'!C14 -> 0 | F5: ='Entreprise E'!C14 -> 0 | H5: =MAX(B5:F5) -> 0 | I5: =COUNTIF(B5:F5,H5) -> 5 | J5: =IF(I5>1,"OUI","NON") -> OUI | K5: NON
A6: Bertha Binnig | B6: ='Entreprise A'!C15 -> 0 | C6: ='Entreprise B'!C15 -> 0 | D6: ='Entreprise C'!C15 -> 0 | E6: ='Entreprise D'!C15 -> 0 | F6: ='Entreprise E'!C15 -> 0 | H6: =MAX(IF(B31:F31>1,IF(ISNUMBER(B31:F31)=TRUE,B6:F6))) -> 0 | I6: =COUNTIFS(B6:F6,H6,B31:F31,"<>1",B31:F31,"<>NA") -> 0 | J6: =IF(I6>1,"OUI","NON") -> NON | K6: NON
A7: Claudia Custer | B7: ='Entreprise A'!C16 -> 0 | C7: ='Entreprise B'!C16 -> 0 | D7: ='Entreprise C'!C16 -> 0 | E7: ='Entreprise D'!C16 -> 0 | F7: ='Entreprise E'!C16 -> 0 | H7: =MAX(IF(B32:F32>1,IF(ISNUMBER(B32:F32)=TRUE,B7:F7))) -> 0 | I7: =COUNTIFS(B7:F7,H7,B32:F32,"<>1",B32:F32,"<>NA") -> 0 | J7: =IF(I7>1,"OUI","NON") -> NON | K7: NON
A8: Dieter Diem | B8: ='Entreprise A'!C17 -> 0 | C8: ='Entreprise B'!C17 -> 0 | D8: ='Entreprise C'!C17 -> 0 | E8: ='Entreprise D'!C17 -> 0 | F8: ='Entreprise E'!C17 -> 0 | H8: =MAX(IF(B33:F33>1,IF(ISNUMBER(B33:F33)=TRUE,B8:F8))) -> 0 | I8: =COUNTIFS(B8:F8,H8,B33:F33,"<>1",B33:F33,"<>NA") -> 0 | J8: =IF(I8>1,"OUI","NON") -> NON | K8: NON
A9: Cadre dirigeant/-e normal/-e | B9: ='Entreprise A'!C18 -> 300000 | C9: ='Entreprise B'!C18 -> 300000 | D9: ='Entreprise C'!C18 -> 300000 | E9: ='Entreprise D'!C18 -> 300000 | F9: ='Entreprise E'!C18 -> 300000 | H9: =IF(K9=0,"Vous n'avez pas / plus besoin de faire de tirage au sort!","Vous devez procéder à encore un tirage au sort au moins!") -> Vous devez procéder à encore un tirage au sort au moins! | K9: =IF(OR(J5="OUI",J6="OUI",J7="OUI",J8="OUI"),IF(J5=K5,IF(J6=K6,IF(J7=K7,IF(J8=K8,0,1),1),1),1),0) -> 1
A11: Zufallszahlen im 2. Jahr | B11: Firma A | C11: Firma B | D11: Firma C | E11: Firma D | F11: Firma E
A12: Albert Adam | B12: =IF(AND(B5=$H$5,$I$5>1),RAND(),"") -> 0.6959529191 | C12: =IF(AND(C5=$H$5,$I$5>1),RAND(),"") -> 0.4955055939 | D12: =IF(AND(D5=$H$5,$I$5>1),RAND(),"") -> 0.8505337378 | E12: =IF(AND(E5=$H$5,$I$5>1),RAND(),"") -> 0.9329682425 | F12: =IF(AND(F5=$H$5,$I$5>1),RAND(),"") -> 0.7002875337
A13: Bertha Binnig | B13: =IF(AND(B6=$H$6,$I$6>1,B31>1,B31<>"na"),RAND(),"") ->  | C13: =IF(AND(C6=$H$6,$I$6>1,C31>1,C31<>"na"),RAND(),"") ->  | D13: =IF(AND(D6=$H$6,$I$6>1,D31>1,D31<>"na"),RAND(),"") ->  | E13: =IF(AND(E6=$H$6,$I$6>1,E31>1,E31<>"na"),RAND(),"") ->  | F13: =IF(AND(F6=$H$6,$I$6>1,F31>1,F31<>"na"),RAND(),"") -> 
A14: Claudia Custer | B14: =IF(AND(B7=$H$7,$I$7>1,B32>1,B32<>"na"),RAND(),"") ->  | C14: =IF(AND(C7=$H$7,$I$7>1,C32>1,C32<>"na"),RAND(),"") ->  | D14: =IF(AND(D7=$H$7,$I$7>1,D32>1,D32<>"na"),RAND(),"") ->  | E14: =IF(AND(E7=$H$7,$I$7>1,E32>1,E32<>"na"),RAND(),"") ->  | F14: =IF(AND(F7=$H$7,$I$7>1,F32>1,F32<>"na"),RAND(),"") -> 
A15: Dieter Diem | B15: =IF(AND(B8=$H$8,$I$8>1,B33>1,B33<>"na"),RAND(),"") ->  | C15: =IF(AND(C8=$H$8,$I$8>1,C33>1,C33<>"na"),RAND(),"") ->  | D15: =IF(AND(D8=$H$8,$I$8>1,D33>1,D33<>"na"),RAND(),"") ->  | E15: =IF(AND(E8=$H$8,$I$8>1,E33>1,E33<>"na"),RAND(),"") ->  | F15: =IF(AND(F8=$H$8,$I$8>1,F33>1,F33<>"na"),RAND(),"") -> 
A17: Chiffres aléatoires la 2e année | B17: Entreprise A | C17: Entreprise B | D17: Entreprise C | E17: Entreprise D | F17: Entreprise E
A18: Albert Adam
A19: Bertha Binnig
A20: Claudia Custer
A21: Dieter Diem
A23: Angebote* im 2. Jahr | B23: Firma A | C23: Firma B | D23: Firma C | E23: Firma D | F23: Firma E
A24: Albert Adam | B24: =IF(AND($I$5>1,B5=$H$5),B5+1*B18,B5) -> 0 | C24: =IF(AND($I$5>1,C5=$H$5),C5+1*C18,C5) -> 0 | D24: =IF(AND($I$5>1,D5=$H$5),D5+1*D18,D5) -> 0 | E24: =IF(AND($I$5>1,E5=$H$5),E5+1*E18,E5) -> 0 | F24: =IF(AND($I$5>1,F5=$H$5),F5+1*F18,F5) -> 0
A25: Bertha Binnig | B25: =IF(AND($I$6>1,B6=$H$6),B6+1*B19,B6) -> 0 | C25: =IF(AND($I$6>1,C6=$H$6),C6+1*C19,C6) -> 0 | D25: =IF(AND($I$6>1,D6=$H$6),D6+1*D19,D6) -> 0 | E25: =IF(AND($I$6>1,E6=$H$6),E6+1*E19,E6) -> 0 | F25: =IF(AND($I$6>1,F6=$H$6),F6+1*F19,F6) -> 0
A26: Claudia Custer | B26: =IF(AND($I$7>1,B7=$H$7),B7+1*B20,B7) -> 0 | C26: =IF(AND($I$7>1,C7=$H$7),C7+1*C20,C7) -> 0 | D26: =IF(AND($I$7>1,D7=$H$7),D7+1*D20,D7) -> 0 | E26: =IF(AND($I$7>1,E7=$H$7),E7+1*E20,E7) -> 0 | F26: =IF(AND($I$7>1,F7=$H$7),F7+1*F20,F7) -> 0
A27: Dieter Diem | B27: =IF(AND($I$8>1,B8=$H$8),B8+1*B21,B8) -> 0 | C27: =IF(AND($I$8>1,C8=$H$8),C8+1*C21,C8) -> 0 | D27: =IF(AND($I$8>1,D8=$H$8),D8+1*D21,D8) -> 0 | E27: =IF(AND($I$8>1,E8=$H$8),E8+1*E21,E8) -> 0 | F27: =IF(AND($I$8>1,F8=$H$8),F8+1*F21,F8) -> 0
A28: Normal | B28: =B9 -> 300000 | C28: =C9 -> 300000 | D28: =D9 -> 300000 | E28: =E9 -> 300000 | F28: =F9 -> 300000
A30: Classement la 2e année | B30: Entreprise A | C30: Entreprise B | D30: Entreprise C | E30: Entreprise D | F30: Entreprise E
A31: Albert Adam | B31: =RANK(B24,$B$24:$F$24) -> 1 | C31: =RANK(C24,$B$24:$F$24) -> 1 | D31: =RANK(D24,$B$24:$F$24) -> 1 | E31: =RANK(E24,$B$24:$F$24) -> 1 | F31: =RANK(F24,$B$24:$F$24) -> 1
A32: Bertha Binnig | B32: =IF(AND(B$31>1,B$31<>"NA"),COUNTIFS($B$25:$F$25,">"&B25,$B$31:$F$31,">"&1)+1,"NA") -> NA | C32: =IF(AND(C$31>1,C$31<>"NA"),COUNTIFS($B$25:$F$25,">"&C25,$B$31:$F$31,">"&1)+1,"NA") -> NA | D32: =IF(AND(D$31>1,D$31<>"NA"),COUNTIFS($B$25:$F$25,">"&D25,$B$31:$F$31,">"&1)+1,"NA") -> NA | E32: =IF(AND(E$31>1,E$31<>"NA"),COUNTIFS($B$25:$F$25,">"&E25,$B$31:$F$31,">"&1)+1,"NA") -> NA | F32: =IF(AND(F$31>1,F$31<>"NA"),COUNTIFS($B$25:$F$25,">"&F25,$B$31:$F$31,">"&1)+1,"NA") -> NA
A33: Claudia Custer | B33: =IF(AND(B$32>1,B$32<>"NA"),COUNTIFS($B$26:$F$26,">"&B26,$B$32:$F$32,">"&1)+1,"NA") -> NA | C33: =IF(AND(C$32>1,C$32<>"NA"),COUNTIFS($B$26:$F$26,">"&C26,$B$32:$F$32,">"&1)+1,"NA") -> NA | D33: =IF(AND(D$32>1,D$32<>"NA"),COUNTIFS($B$26:$F$26,">"&D26,$B$32:$F$32,">"&1)+1,"NA") -> NA | E33: =IF(AND(E$32>1,E$32<>"NA"),COUNTIFS($B$26:$F$26,">"&E26,$B$32:$F$32,">"&1)+1,"NA") -> NA | F33: =IF(AND(F$32>1,F$32<>"NA"),COUNTIFS($B$26:$F$26,">"&F26,$B$32:$F$32,">"&1)+1,"NA") -> NA
A34: Dieter Diem | B34: =IF(AND(B$33>1,B$33<>"NA"),COUNTIFS($B$27:$F$27,">"&B27,$B$33:$F$33,">"&1)+1,"NA") -> NA | C34: =IF(AND(C$33>1,C$33<>"NA"),COUNTIFS($B$27:$F$27,">"&C27,$B$33:$F$33,">"&1)+1,"NA") -> NA | D34: =IF(AND(D$33>1,D$33<>"NA"),COUNTIFS($B$27:$F$27,">"&D27,$B$33:$F$33,">"&1)+1,"NA") -> NA | E34: =IF(AND(E$33>1,E$33<>"NA"),COUNTIFS($B$27:$F$27,">"&E27,$B$33:$F$33,">"&1)+1,"NA") -> NA | F34: =IF(AND(F$33>1,F$33<>"NA"),COUNTIFS($B$27:$F$27,">"&F27,$B$33:$F$33,">"&1)+1,"NA") -> NA
A35: Cadre dirigeant/-e normal/-e | B35: =IF(AND(B$34>1,B$34<>"NA"),COUNTIFS($B$28:$F$28,">"&B28,$B$34:$F$34,">"&1)+1,"NA") -> NA | C35: =IF(AND(C$34>1,C$34<>"NA"),COUNTIFS($B$28:$F$28,">"&C28,$B$34:$F$34,">"&1)+1,"NA") -> NA | D35: =IF(AND(D$34>1,D$34<>"NA"),COUNTIFS($B$28:$F$28,">"&D28,$B$34:$F$34,">"&1)+1,"NA") -> NA | E35: =IF(AND(E$34>1,E$34<>"NA"),COUNTIFS($B$28:$F$28,">"&E28,$B$34:$F$34,">"&1)+1,"NA") -> NA | F35: =IF(AND(F$34>1,F$34<>"NA"),COUNTIFS($B$28:$F$28,">"&F28,$B$34:$F$34,">"&1)+1,"NA") -> NA
A37: Offres la 2e année | B37: Entreprise A | C37: Entreprise B | D37: Entreprise C | E37: Entreprise D | F37: Entreprise E | H37: Affectation | I37: Entreprise | J37: Salaire annuel
A38: Albert Adam | B38: =B5 -> 0 | C38: 0 | D38: 0 | E38: 0 | F38: 0 | H38: Albert Adam | I38: =INDEX($B$30:$F$30,MATCH(1,B31:F31,0)) -> Entreprise A | J38: =INDEX(B5:F5,MATCH(I38,$B$4:$F$4,0)) -> 0 | M38: Retour au mode d’emploi
A39: Bertha Binnig | B39: 0 | C39: 0 | D39: 0 | E39: 0 | F39: 0 | H39: Bertha Binnig | I39: =INDEX($B$30:$F$30,MATCH(1,B32:F32,0)) ->  | J39: =INDEX(B6:F6,MATCH(I39,$B$4:$F$4,0)) -> 
A40: Claudia Custer | B40: 0 | C40: 0 | D40: 0 | E40: 0 | F40: 0 | H40: Claudia Custer | I40: =INDEX($B$30:$F$30,MATCH(1,B33:F33,0)) ->  | J40: =INDEX(B7:F7,MATCH(I40,$B$4:$F$4,0)) -> 
A41: Dieter Diem | B41: =B8 -> 0 | C41: 0 | D41: 0 | E41: 0 | F41: 0 | H41: Dieter Diem | I41: =INDEX($B$30:$F$30,MATCH(1,B34:F34,0)) ->  | J41: =INDEX(B8:F8,MATCH(I41,$B$4:$F$4,0)) -> 
A42: Cadre dirigeant/-e normal/-e | B42: =B9 -> 300000 | C42: =C9 -> 300000 | D42: =D9 -> 300000 | E42: =E9 -> 300000 | F42: =F9 -> 300000 | H42: Cadre dirigeant/-e normal/-e | I42: =INDEX($B$30:$F$30,MATCH(1,B35:F35,0)) ->  | J42: =INDEX(B9:F9,MATCH(I42,$B$4:$F$4,0)) ->  | M42: Passer à l’évaluation des salaires des dirigeants

Sheet 3e année
A1: Théorie des jeux - Hauts salaires
A2: Jeu éducatif sur les salaires des dirigeants - Affectation des dirigeants (3e année)
A4: Offres la 3e année | B4: Entreprise A | C4: Entreprise B | D4: Entreprise C | E4: Entreprise D | F4: Entreprise E | H4: Maximum | I4: # Maxima | J4: Tirage au sort
A5: Albert Adam | B5: ='Entreprise A'!G7 -> 0 | C5: ='Entreprise B'!G7 -> 0 | D5: ='Entreprise C'!G7 -> 0 | E5: ='Entreprise D'!G7 -> 0 | F5: ='Entreprise E'!G7 -> 0 | H5: =MAX(B5:F5) -> 0 | I5: =COUNTIF(B5:F5,H5) -> 5 | J5: =IF(I5>1,"OUI","NON") -> OUI | K5: NON
A6: Bertha Binnig | B6: ='Entreprise A'!G8 -> 0 | C6: ='Entreprise B'!G8 -> 0 | D6: ='Entreprise C'!G8 -> 0 | E6: ='Entreprise D'!G8 -> 0 | F6: ='Entreprise E'!G8 -> 0 | H6: =MAX(IF(B31:F31>1,IF(ISNUMBER(B31:F31)=TRUE,B6:F6))) -> 0 | I6: =COUNTIFS(B6:F6,H6,B31:F31,"<>1",B31:F31,"<>NA") -> 0 | J6: =IF(I6>1,"OUI","NON") -> NON | K6: NON
A7: Claudia Custer | B7: ='Entreprise A'!G9 -> 0 | C7: ='Entreprise B'!G9 -> 0 | D7: ='Entreprise C'!G9 -> 0 | E7: ='Entreprise D'!G9 -> 0 | F7: ='Entreprise E'!G9 -> 0 | H7: =MAX(IF(B32:F32>1,IF(ISNUMBER(B32:F32)=TRUE,B7:F7))) -> 0 | I7: =COUNTIFS(B7:F7,H7,B32:F32,"<>1",B32:F32,"<>NA") -> 0 | J7: =IF(I7>1,"OUI","NON") -> NON | K7: NON
A8: Dieter Diem | B8: ='Entreprise A'!G10 -> 0 | C8: ='Entreprise B'!G10 -> 0 | D8: ='Entreprise C'!G10 -> 0 | E8: ='Entreprise D'!G10 -> 0 | F8: ='Entreprise E'!G10 -> 0 | H8: =MAX(IF(B33:F33>1,IF(ISNUMBER(B33:F33)=TRUE,B8:F8))) -> 0 | I8: =COUNTIFS(B8:F8,H8,B33:F33,"<>1",B33:F33,"<>NA") -> 0 | J8: =IF(I8>1,"OUI","NON") -> NON | K8: NON
A9: Cadre dirigeant/-e normal/-e | B9: ='Entreprise A'!G11 -> 300000 | C9: ='Entreprise B'!G11 -> 300000 | D9: ='Entreprise C'!G11 -> 300000 | E9: ='Entreprise D'!G11 -> 300000 | F9: ='Entreprise E'!G11 -> 300000 | H9: =IF(K9=0,"Vous n'avez plus besoin de faire de tirage au sort!","Vous devez procéder à encore un tirage au sort au moins!") -> Vous devez procéder à encore un tirage au sort au moins! | K9: =IF(OR(J5="OUI",J6="OUI",J7="OUI",J8="OUI"),IF(J5=K5,IF(J6=K6,IF(J7=K7,IF(J8=K8,0,1),1),1),1),0) -> 1
A11: Zufallszahlen im 3. Jahr | B11: Firma A | C11: Firma B | D11: Firma C | E11: Firma D | F11: Firma E
A12: Albert Adam | B12: =IF(AND(B5=$H$5,$I$5>1),RAND(),"") -> 0.9245671415 | C12: =IF(AND(C5=$H$5,$I$5>1),RAND(),"") -> 0.8742792729 | D12: =IF(AND(D5=$H$5,$I$5>1),RAND(),"") -> 0.3264922657 | E12: =IF(AND(E5=$H$5,$I$5>1),RAND(),"") -> 0.2592969838 | F12: =IF(AND(F5=$H$5,$I$5>1),RAND(),"") -> 0.8660122183
A13: Bertha Binnig | B13: =IF(AND(B6=$H$6,$I$6>1,B31>1,B31<>"na"),RAND(),"") ->  | C13: =IF(AND(C6=$H$6,$I$6>1,C31>1,C31<>"na"),RAND(),"") ->  | D13: =IF(AND(D6=$H$6,$I$6>1,D31>1,D31<>"na"),RAND(),"") ->  | E13: =IF(AND(E6=$H$6,$I$6>1,E31>1,E31<>"na"),RAND(),"") ->  | F13: =IF(AND(F6=$H$6,$I$6>1,F31>1,F31<>"na"),RAND(),"") -> 
A14: Claudia Custer | B14: =IF(AND(B7=$H$7,$I$7>1,B32>1,B32<>"na"),RAND(),"") ->  | C14: =IF(AND(C7=$H$7,$I$7>1,C32>1,C32<>"na"),RAND(),"") ->  | D14: =IF(AND(D7=$H$7,$I$7>1,D32>1,D32<>"na"),RAND(),"") ->  | E14: =IF(AND(E7=$H$7,$I$7>1,E32>1,E32<>"na"),RAND(),"") ->  | F14: =IF(AND(F7=$H$7,$I$7>1,F32>1,F32<>"na"),RAND(),"") -> 
A15: Dieter Diem | B15: =IF(AND(B8=$H$8,$I$8>1,B33>1,B33<>"na"),RAND(),"") ->  | C15: =IF(AND(C8=$H$8,$I$8>1,C33>1,C33<>"na"),RAND(),"") ->  | D15: =IF(AND(D8=$H$8,$I$8>1,D33>1,D33<>"na"),RAND(),"") ->  | E15: =IF(AND(E8=$H$8,$I$8>1,E33>1,E33<>"na"),RAND(),"") ->  | F15: =IF(AND(F8=$H$8,$I$8>1,F33>1,F33<>"na"),RAND(),"") -> 
A17: Chiffres aléatoires la 3e année | B17: Entreprise A | C17: Entreprise B | D17: Entreprise C | E17: Entreprise D | F17: Entreprise E
A18: Albert Adam
A19: Bertha Binnig
A20: Claudia Custer
A21: Dieter Diem
A23: Angebote* im 3. Jahr | B23: Firma A | C23: Firma B | D23: Firma C | E23: Firma D | F23: Firma E
A24: Albert Adam | B24: =IF(AND($I$5>1,B5=$H$5),B5+1*B18,B5) -> 0 | C24: =IF(AND($I$5>1,C5=$H$5),C5+1*C18,C5) -> 0 | D24: =IF(AND($I$5>1,D5=$H$5),D5+1*D18,D5) -> 0 | E24: =IF(AND($I$5>1,E5=$H$5),E5+1*E18,E5) -> 0 | F24: =IF(AND($I$5>1,F5=$H$5),F5+1*F18,F5) -> 0
A25: Bertha Binnig | B25: =IF(AND($I$6>1,B6=$H$6),B6+1*B19,B6) -> 0 | C25: =IF(AND($I$6>1,C6=$H$6),C6+1*C19,C6) -> 0 | D25: =IF(AND($I$6>1,D6=$H$6),D6+1*D19,D6) -> 0 | E25: =IF(AND($I$6>1,E6=$H$6),E6+1*E19,E6) -> 0 | F25: =IF(AND($I$6>1,F6=$H$6),F6+1*F19,F6) -> 0
A26: Claudia Custer | B26: =IF(AND($I$7>1,B7=$H$7),B7+1*B20,B7) -> 0 | C26: =IF(AND($I$7>1,C7=$H$7),C7+1*C20,C7) -> 0 | D26: =IF(AND($I$7>1,D7=$H$7),D7+1*D20,D7) -> 0 | E26: =IF(AND($I$7>1,E7=$H$7),E7+1*E20,E7) -> 0 | F26: =IF(AND($I$7>1,F7=$H$7),F7+1*F20,F7) -> 0
A27: Dieter Diem | B27: =IF(AND($I$8>1,B8=$H$8),B8+1*B21,B8) -> 0 | C27: =IF(AND($I$8>1,C8=$H$8),C8+1*C21,C8) -> 0 | D27: =IF(AND($I$8>1,D8=$H$8),D8+1*D21,D8) -> 0 | E27: =IF(AND($I$8>1,E8=$H$8),E8+1*E21,E8) -> 0 | F27: =IF(AND($I$8>1,F8=$H$8),F8+1*F21,F8) -> 0
A28: Normal | B28: =B9 -> 300000 | C28: =C9 -> 300000 | D28: =D9 -> 300000 | E28: =E9 -> 300000 | F28: =F9 -> 300000
A30: Classement la 3e année | B30: Entreprise A | C30: Entreprise B | D30: Entreprise C | E30: Entreprise D | F30: Entreprise E
A31: Albert Adam | B31: =RANK(B24,$B$24:$F$24) -> 1 | C31: =RANK(C24,$B$24:$F$24) -> 1 | D31: =RANK(D24,$B$24:$F$24) -> 1 | E31: =RANK(E24,$B$24:$F$24) -> 1 | F31: =RANK(F24,$B$24:$F$24) -> 1
A32: Bertha Binnig | B32: =IF(AND(B$31>1,B$31<>"NA"),COUNTIFS($B$25:$F$25,">"&B25,$B$31:$F$31,">"&1)+1,"NA") -> NA | C32: =IF(AND(C$31>1,C$31<>"NA"),COUNTIFS($B$25:$F$25,">"&C25,$B$31:$F$31,">"&1)+1,"NA") -> NA | D32: =IF(AND(D$31>1,D$31<>"NA"),COUNTIFS($B$25:$F$25,">"&D25,$B$31:$F$31,">"&1)+1,"NA") -> NA | E32: =IF(AND(E$31>1,E$31<>"NA"),COUNTIFS($B$25:$F$25,">"&E25,$B$31:$F$31,">"&1)+1,"NA") -> NA | F32: =IF(AND(F$31>1,F$31<>"NA"),COUNTIFS($B$25:$F$25,">"&F25,$B$31:$F$31,">"&1)+1,"NA") -> NA
A33: Claudia Custer | B33: =IF(AND(B$32>1,B$32<>"NA"),COUNTIFS($B$26:$F$26,">"&B26,$B$32:$F$32,">"&1)+1,"NA") -> NA | C33: =IF(AND(C$32>1,C$32<>"NA"),COUNTIFS($B$26:$F$26,">"&C26,$B$32:$F$32,">"&1)+1,"NA") -> NA | D33: =IF(AND(D$32>1,D$32<>"NA"),COUNTIFS($B$26:$F$26,">"&D26,$B$32:$F$32,">"&1)+1,"NA") -> NA | E33: =IF(AND(E$32>1,E$32<>"NA"),COUNTIFS($B$26:$F$26,">"&E26,$B$32:$F$32,">"&1)+1,"NA") -> NA | F33: =IF(AND(F$32>1,F$32<>"NA"),COUNTIFS($B$26:$F$26,">"&F26,$B$32:$F$32,">"&1)+1,"NA") -> NA
A34: Dieter Diem | B34: =IF(AND(B$33>1,B$33<>"NA"),COUNTIFS($B$27:$F$27,">"&B27,$B$33:$F$33,">"&1)+1,"NA") -> NA | C34: =IF(AND(C$33>1,C$33<>"NA"),COUNTIFS($B$27:$F$27,">"&C27,$B$33:$F$33,">"&1)+1,"NA") -> NA | D34: =IF(AND(D$33>1,D$33<>"NA"),COUNTIFS($B$27:$F$27,">"&D27,$B$33:$F$33,">"&1)+1,"NA") -> NA | E34: =IF(AND(E$33>1,E$33<>"NA"),COUNTIFS($B$27:$F$27,">"&E27,$B$33:$F$33,">"&1)+1,"NA") -> NA | F34: =IF(AND(F$33>1,F$33<>"NA"),COUNTIFS($B$27:$F$27,">"&F27,$B$33:$F$33,">"&1)+1,"NA") -> NA
A35: Cadre dirigeant/-e normal/-e | B35: =IF(AND(B$34>1,B$34<>"NA"),COUNTIFS($B$28:$F$28,">"&B28,$B$34:$F$34,">"&1)+1,"NA") -> NA | C35: =IF(AND(C$34>1,C$34<>"NA"),COUNTIFS($B$28:$F$28,">"&C28,$B$34:$F$34,">"&1)+1,"NA") -> NA | D35: =IF(AND(D$34>1,D$34<>"NA"),COUNTIFS($B$28:$F$28,">"&D28,$B$34:$F$34,">"&1)+1,"NA") -> NA | E35: =IF(AND(E$34>1,E$34<>"NA"),COUNTIFS($B$28:$F$28,">"&E28,$B$34:$F$34,">"&1)+1,"NA") -> NA | F35: =IF(AND(F$34>1,F$34<>"NA"),COUNTIFS($B$28:$F$28,">"&F28,$B$34:$F$34,">"&1)+1,"NA") -> NA
A37: Offres la 3e année | B37: Entreprise A | C37: Entreprise B | D37: Entreprise C | E37: Entreprise D | F37: Entreprise E | H37: Affectation | I37: Entreprise | J37: Salaire annuel
A38: Albert Adam | B38: =B5 -> 0 | C38: 0 | D38: 0 | E38: 0 | F38: 0 | H38: Albert Adam | I38: =INDEX($B$30:$F$30,MATCH(1,B31:F31,0)) -> Entreprise A | J38: =INDEX(B5:F5,MATCH(I38,$B$4:$F$4,0)) -> 0 | M38: Retour au mode d’emploi
A39: Bertha Binnig | B39: 0 | C39: 0 | D39: 0 | E39: 0 | F39: 0 | H39: Bertha Binnig | I39: =INDEX($B$30:$F$30,MATCH(1,B32:F32,0)) ->  | J39: =INDEX(B6:F6,MATCH(I39,$B$4:$F$4,0)) -> 
A40: Claudia Custer | B40: 0 | C40: 0 | D40: 0 | E40: 0 | F40: 0 | H40: Claudia Custer | I40: =INDEX($B$30:$F$30,MATCH(1,B33:F33,0)) ->  | J40: =INDEX(B7:F7,MATCH(I40,$B$4:$F$4,0)) -> 
A41: Dieter Diem | B41: =B8 -> 0 | C41: 0 | D41: 0 | E41: 0 | F41: 0 | H41: Dieter Diem | I41: =INDEX($B$30:$F$30,MATCH(1,B34:F34,0)) ->  | J41: =INDEX(B8:F8,MATCH(I41,$B$4:$F$4,0)) -> 
A42: Cadre dirigeant/-e normal/-e | B42: =B9 -> 300000 | C42: =C9 -> 300000 | D42: =D9 -> 300000 | E42: =E9 -> 300000 | F42: =F9 -> 300000 | H42: Cadre dirigeant/-e normal/-e | I42: =INDEX($B$30:$F$30,MATCH(1,B35:F35,0)) ->  | J42: =INDEX(B9:F9,MATCH(I42,$B$4:$F$4,0)) ->  | M42: Passer à l’évaluation des salaires des dirigeants

Sheet 4e année
A1: Théorie des jeux - Hauts salaires
A2: Jeu éducatif sur les salaires des dirigeants - Affectation des dirigeants (4e année)
A4: Offres la 4e année | B4: Entreprise A | C4: Entreprise B | D4: Entreprise C | E4: Entreprise D | F4: Entreprise E | H4: Maximum | I4: # Maxima | J4: Tirage au sort
A5: Albert Adam | B5: ='Entreprise A'!G14 -> 0 | C5: ='Entreprise B'!G14 -> 0 | D5: ='Entreprise C'!G14 -> 0 | E5: ='Entreprise D'!G14 -> 0 | F5: ='Entreprise E'!G14 -> 0 | H5: =MAX(B5:F5) -> 0 | I5: =COUNTIF(B5:F5,H5) -> 5 | J5: =IF(I5>1,"OUI","NON") -> OUI | K5: NON
A6: Bertha Binnig | B6: ='Entreprise A'!G15 -> 0 | C6: ='Entreprise B'!G15 -> 0 | D6: ='Entreprise C'!G15 -> 0 | E6: ='Entreprise D'!G15 -> 0 | F6: ='Entreprise E'!G15 -> 0 | H6: =MAX(IF(B31:F31>1,IF(ISNUMBER(B31:F31)=TRUE,B6:F6))) -> 0 | I6: =COUNTIFS(B6:F6,H6,B31:F31,"<>1",B31:F31,"<>NA") -> 0 | J6: =IF(I6>1,"OUI","NON") -> NON | K6: NON
A7: Claudia Custer | B7: ='Entreprise A'!G16 -> 0 | C7: ='Entreprise B'!G16 -> 0 | D7: ='Entreprise C'!G16 -> 0 | E7: ='Entreprise D'!G16 -> 0 | F7: ='Entreprise E'!G16 -> 0 | H7: =MAX(IF(B32:F32>1,IF(ISNUMBER(B32:F32)=TRUE,B7:F7))) -> 0 | I7: =COUNTIFS(B7:F7,H7,B32:F32,"<>1",B32:F32,"<>NA") -> 0 | J7: =IF(I7>1,"OUI","NON") -> NON | K7: NON
A8: Dieter Diem | B8: ='Entreprise A'!G17 -> 0 | C8: ='Entreprise B'!G17 -> 0 | D8: ='Entreprise C'!G17 -> 0 | E8: ='Entreprise D'!G17 -> 0 | F8: ='Entreprise E'!G17 -> 0 | H8: =MAX(IF(B33:F33>1,IF(ISNUMBER(B33:F33)=TRUE,B8:F8))) -> 0 | I8: =COUNTIFS(B8:F8,H8,B33:F33,"<>1",B33:F33,"<>NA") -> 0 | J8: =IF(I8>1,"OUI","NON") -> NON | K8: NON
A9: Cadre dirigeant/-e normal/-e | B9: ='Entreprise A'!G18 -> 300000 | C9: ='Entreprise B'!G18 -> 300000 | D9: ='Entreprise C'!G18 -> 300000 | E9: ='Entreprise D'!G18 -> 300000 | F9: ='Entreprise E'!G18 -> 300000 | H9: =IF(K9=0,"Vous n'avez plus besoin de faire de tirage au sort!","Vous devez procéder à encore un tirage au sort au moins!") -> Vous devez procéder à encore un tirage au sort au moins! | K9: =IF(OR(J5="OUI",J6="OUI",J7="OUI",J8="OUI"),IF(J5=K5,IF(J6=K6,IF(J7=K7,IF(J8=K8,0,1),1),1),1),0) -> 1
A11: Zufallszahlen im 4. Jahr | B11: Firma A | C11: Firma B | D11: Firma C | E11: Firma D | F11: Firma E
A12: Albert Adam | B12: =IF(AND(B5=$H$5,$I$5>1),RAND(),"") -> 0.03198511141 | C12: =IF(AND(C5=$H$5,$I$5>1),RAND(),"") -> 0.3564470021 | D12: =IF(AND(D5=$H$5,$I$5>1),RAND(),"") -> 0.6554405334 | E12: =IF(AND(E5=$H$5,$I$5>1),RAND(),"") -> 0.4071082808 | F12: =IF(AND(F5=$H$5,$I$5>1),RAND(),"") -> 0.9005328458
A13: Bertha Binnig | B13: =IF(AND(B6=$H$6,$I$6>1,B31>1,B31<>"na"),RAND(),"") ->  | C13: =IF(AND(C6=$H$6,$I$6>1,C31>1,C31<>"na"),RAND(),"") ->  | D13: =IF(AND(D6=$H$6,$I$6>1,D31>1,D31<>"na"),RAND(),"") ->  | E13: =IF(AND(E6=$H$6,$I$6>1,E31>1,E31<>"na"),RAND(),"") ->  | F13: =IF(AND(F6=$H$6,$I$6>1,F31>1,F31<>"na"),RAND(),"") -> 
A14: Claudia Custer | B14: =IF(AND(B7=$H$7,$I$7>1,B32>1,B32<>"na"),RAND(),"") ->  | C14: =IF(AND(C7=$H$7,$I$7>1,C32>1,C32<>"na"),RAND(),"") ->  | D14: =IF(AND(D7=$H$7,$I$7>1,D32>1,D32<>"na"),RAND(),"") ->  | E14: =IF(AND(E7=$H$7,$I$7>1,E32>1,E32<>"na"),RAND(),"") ->  | F14: =IF(AND(F7=$H$7,$I$7>1,F32>1,F32<>"na"),RAND(),"") -> 
A15: Dieter Diem | B15: =IF(AND(B8=$H$8,$I$8>1,B33>1,B33<>"na"),RAND(),"") ->  | C15: =IF(AND(C8=$H$8,$I$8>1,C33>1,C33<>"na"),RAND(),"") ->  | D15: =IF(AND(D8=$H$8,$I$8>1,D33>1,D33<>"na"),RAND(),"") ->  | E15: =IF(AND(E8=$H$8,$I$8>1,E33>1,E33<>"na"),RAND(),"") ->  | F15: =IF(AND(F8=$H$8,$I$8>1,F33>1,F33<>"na"),RAND(),"") -> 
A17: Chiffres aléatoires la 4e année | B17: Entreprise A | C17: Entreprise B | D17: Entreprise C | E17: Entreprise D | F17: Entreprise E
A18: Albert Adam
A19: Bertha Binnig
A20: Claudia Custer
A21: Dieter Diem
A23: Angebote* im 4. Jahr | B23: Firma A | C23: Firma B | D23: Firma C | E23: Firma D | F23: Firma E
A24: Albert Adam | B24: =IF(AND($I$5>1,B5=$H$5),B5+1*B18,B5) -> 0 | C24: =IF(AND($I$5>1,C5=$H$5),C5+1*C18,C5) -> 0 | D24: =IF(AND($I$5>1,D5=$H$5),D5+1*D18,D5) -> 0 | E24: =IF(AND($I$5>1,E5=$H$5),E5+1*E18,E5) -> 0 | F24: =IF(AND($I$5>1,F5=$H$5),F5+1*F18,F5) -> 0
A25: Bertha Binnig | B25: =IF(AND($I$6>1,B6=$H$6),B6+1*B19,B6) -> 0 | C25: =IF(AND($I$6>1,C6=$H$6),C6+1*C19,C6) -> 0 | D25: =IF(AND($I$6>1,D6=$H$6),D6+1*D19,D6) -> 0 | E25: =IF(AND($I$6>1,E6=$H$6),E6+1*E19,E6) -> 0 | F25: =IF(AND($I$6>1,F6=$H$6),F6+1*F19,F6) -> 0
A26: Claudia Custer | B26: =IF(AND($I$7>1,B7=$H$7),B7+1*B20,B7) -> 0 | C26: =IF(AND($I$7>1,C7=$H$7),C7+1*C20,C7) -> 0 | D26: =IF(AND($I$7>1,D7=$H$7),D7+1*D20,D7) -> 0 | E26: =IF(AND($I$7>1,E7=$H$7),E7+1*E20,E7) -> 0 | F26: =IF(AND($I$7>1,F7=$H$7),F7+1*F20,F7) -> 0
A27: Dieter Diem | B27: =IF(AND($I$8>1,B8=$H$8),B8+1*B21,B8) -> 0 | C27: =IF(AND($I$8>1,C8=$H$8),C8+1*C21,C8) -> 0 | D27: =IF(AND($I$8>1,D8=$H$8),D8+1*D21,D8) -> 0 | E27: =IF(AND($I$8>1,E8=$H$8),E8+1*E21,E8) -> 0 | F27: =IF(AND($I$8>1,F8=$H$8),F8+1*F21,F8) -> 0
A28: Normal | B28: =B9 -> 300000 | C28: =C9 -> 300000 | D28: =D9 -> 300000 | E28: =E9 -> 300000 | F28: =F9 -> 300000
A30: Classement la 4e année | B30: Entreprise A | C30: Entreprise B | D30: Entreprise C | E30: Entreprise D | F30: Entreprise E
A31: Albert Adam | B31: =RANK(B24,$B$24:$F$24) -> 1 | C31: =RANK(C24,$B$24:$F$24) -> 1 | D31: =RANK(D24,$B$24:$F$24) -> 1 | E31: =RANK(E24,$B$24:$F$24) -> 1 | F31: =RANK(F24,$B$24:$F$24) -> 1
A32: Bertha Binnig | B32: =IF(AND(B$31>1,B$31<>"NA"),COUNTIFS($B$25:$F$25,">"&B25,$B$31:$F$31,">"&1)+1,"NA") -> NA | C32: =IF(AND(C$31>1,C$31<>"NA"),COUNTIFS($B$25:$F$25,">"&C25,$B$31:$F$31,">"&1)+1,"NA") -> NA | D32: =IF(AND(D$31>1,D$31<>"NA"),COUNTIFS($B$25:$F$25,">"&D25,$B$31:$F$31,">"&1)+1,"NA") -> NA | E32: =IF(AND(E$31>1,E$31<>"NA"),COUNTIFS($B$25:$F$25,">"&E25,$B$31:$F$31,">"&1)+1,"NA") -> NA | F32: =IF(AND(F$31>1,F$31<>"NA"),COUNTIFS($B$25:$F$25,">"&F25,$B$31:$F$31,">"&1)+1,"NA") -> NA
A33: Claudia Custer | B33: =IF(AND(B$32>1,B$32<>"NA"),COUNTIFS($B$26:$F$26,">"&B26,$B$32:$F$32,">"&1)+1,"NA") -> NA | C33: =IF(AND(C$32>1,C$32<>"NA"),COUNTIFS($B$26:$F$26,">"&C26,$B$32:$F$32,">"&1)+1,"NA") -> NA | D33: =IF(AND(D$32>1,D$32<>"NA"),COUNTIFS($B$26:$F$26,">"&D26,$B$32:$F$32,">"&1)+1,"NA") -> NA | E33: =IF(AND(E$32>1,E$32<>"NA"),COUNTIFS($B$26:$F$26,">"&E26,$B$32:$F$32,">"&1)+1,"NA") -> NA | F33: =IF(AND(F$32>1,F$32<>"NA"),COUNTIFS($B$26:$F$26,">"&F26,$B$32:$F$32,">"&1)+1,"NA") -> NA
A34: Dieter Diem | B34: =IF(AND(B$33>1,B$33<>"NA"),COUNTIFS($B$27:$F$27,">"&B27,$B$33:$F$33,">"&1)+1,"NA") -> NA | C34: =IF(AND(C$33>1,C$33<>"NA"),COUNTIFS($B$27:$F$27,">"&C27,$B$33:$F$33,">"&1)+1,"NA") -> NA | D34: =IF(AND(D$33>1,D$33<>"NA"),COUNTIFS($B$27:$F$27,">"&D27,$B$33:$F$33,">"&1)+1,"NA") -> NA | E34: =IF(AND(E$33>1,E$33<>"NA"),COUNTIFS($B$27:$F$27,">"&E27,$B$33:$F$33,">"&1)+1,"NA") -> NA | F34: =IF(AND(F$33>1,F$33<>"NA"),COUNTIFS($B$27:$F$27,">"&F27,$B$33:$F$33,">"&1)+1,"NA") -> NA
A35: Cadre dirigeant/-e normal/-e | B35: =IF(AND(B$34>1,B$34<>"NA"),COUNTIFS($B$28:$F$28,">"&B28,$B$34:$F$34,">"&1)+1,"NA") -> NA | C35: =IF(AND(C$34>1,C$34<>"NA"),COUNTIFS($B$28:$F$28,">"&C28,$B$34:$F$34,">"&1)+1,"NA") -> NA | D35: =IF(AND(D$34>1,D$34<>"NA"),COUNTIFS($B$28:$F$28,">"&D28,$B$34:$F$34,">"&1)+1,"NA") -> NA | E35: =IF(AND(E$34>1,E$34<>"NA"),COUNTIFS($B$28:$F$28,">"&E28,$B$34:$F$34,">"&1)+1,"NA") -> NA | F35: =IF(AND(F$34>1,F$34<>"NA"),COUNTIFS($B$28:$F$28,">"&F28,$B$34:$F$34,">"&1)+1,"NA") -> NA
A37: Offres la 4e année | B37: Entreprise A | C37: Entreprise B | D37: Entreprise C | E37: Entreprise D | F37: Entreprise E | H37: Affectation | I37: Entreprise | J37: Salaire annuel
A38: Albert Adam | B38: =B5 -> 0 | C38: 0 | D38: 0 | E38: 0 | F38: 0 | H38: Albert Adam | I38: =INDEX($B$30:$F$30,MATCH(1,B31:F31,0)) -> Entreprise A | J38: =INDEX(B5:F5,MATCH(I38,$B$4:$F$4,0)) -> 0 | M38: Retour au mode d’emploi
A39: Bertha Binnig | B39: 0 | C39: 0 | D39: 0 | E39: 0 | F39: 0 | H39: Bertha Binnig | I39: =INDEX($B$30:$F$30,MATCH(1,B32:F32,0)) ->  | J39: =INDEX(B6:F6,MATCH(I39,$B$4:$F$4,0)) -> 
A40: Claudia Custer | B40: 0 | C40: 0 | D40: 0 | E40: 0 | F40: 0 | H40: Claudia Custer | I40: =INDEX($B$30:$F$30,MATCH(1,B33:F33,0)) ->  | J40: =INDEX(B7:F7,MATCH(I40,$B$4:$F$4,0)) -> 
A41: Dieter Diem | B41: =B8 -> 0 | C41: 0 | D41: 0 | E41: 0 | F41: 0 | H41: Dieter Diem | I41: =INDEX($B$30:$F$30,MATCH(1,B34:F34,0)) ->  | J41: =INDEX(B8:F8,MATCH(I41,$B$4:$F$4,0)) -> 
A42: Cadre dirigeant/-e normal/-e | B42: =B9 -> 300000 | C42: =C9 -> 300000 | D42: =D9 -> 300000 | E42: =E9 -> 300000 | F42: =F9 -> 300000 | H42: Cadre dirigeant/-e normal/-e | I42: =INDEX($B$30:$F$30,MATCH(1,B35:F35,0)) ->  | J42: =INDEX(B9:F9,MATCH(I42,$B$4:$F$4,0)) ->  | M42: Passer à l’évaluation des salaires des dirigeants

Sheet Évaluation des salaires des dir
A1: Théorie des jeux - Hauts salaires
A2: Jeu éducatif sur les salaires des dirigeants - Evaluation du salaire annuel des dirigeants
A4: CEO | B4: 1re année | C4: 2e année | D4: 3e année | E4: 4e année
A5: Albert Adam | B5: =INDEX('1re année'!$J$38:$J$42,MATCH(A5,'1re année'!$H$38:$H$42,0)) -> 0 | C5: =INDEX('2e année'!$J$38:$J$42,MATCH(A5,'2e année'!$H$38:$H$42,0)) -> 0 | D5: =INDEX('3e année'!$J$38:$J$42,MATCH(A5,'3e année'!$H$38:$H$42,0)) -> 0 | E5: =INDEX('4e année'!$J$38:$J$42,MATCH(A5,'4e année'!$H$38:$H$42,0)) -> 0
A6: Bertha Binnig | B6: =INDEX('1re année'!$J$38:$J$42,MATCH(A6,'1re année'!$H$38:$H$42,0)) ->  | C6: =INDEX('2e année'!$J$38:$J$42,MATCH(A6,'2e année'!$H$38:$H$42,0)) ->  | D6: =INDEX('3e année'!$J$38:$J$42,MATCH(A6,'3e année'!$H$38:$H$42,0)) ->  | E6: =INDEX('4e année'!$J$38:$J$42,MATCH(A6,'4e année'!$H$38:$H$42,0)) -> 
A7: Claudia Custer | B7: =INDEX('1re année'!$J$38:$J$42,MATCH(A7,'1re année'!$H$38:$H$42,0)) ->  | C7: =INDEX('2e année'!$J$38:$J$42,MATCH(A7,'2e année'!$H$38:$H$42,0)) ->  | D7: =INDEX('3e année'!$J$38:$J$42,MATCH(A7,'3e année'!$H$38:$H$42,0)) ->  | E7: =INDEX('4e année'!$J$38:$J$42,MATCH(A7,'4e année'!$H$38:$H$42,0)) -> 
A8: Dieter Diem | B8: =INDEX('1re année'!$J$38:$J$42,MATCH(A8,'1re année'!$H$38:$H$42,0)) ->  | C8: =INDEX('2e année'!$J$38:$J$42,MATCH(A8,'2e année'!$H$38:$H$42,0)) ->  | D8: =INDEX('3e année'!$J$38:$J$42,MATCH(A8,'3e année'!$H$38:$H$42,0)) ->  | E8: =INDEX('4e année'!$J$38:$J$42,MATCH(A8,'4e année'!$H$38:$H$42,0)) -> 
A9: Cadre dirigeant/-e normal/-e | B9: =INDEX('1re année'!$J$38:$J$42,MATCH(A9,'1re année'!$H$38:$H$42,0)) ->  | C9: =INDEX('2e année'!$J$38:$J$42,MATCH(A9,'2e année'!$H$38:$H$42,0)) ->  | D9: =INDEX('3e année'!$J$38:$J$42,MATCH(A9,'3e année'!$H$38:$H$42,0)) ->  | E9: =INDEX('4e année'!$J$38:$J$42,MATCH(A9,'4e année'!$H$38:$H$42,0)) ->  | H9: Passer à l’évaluation des entreprises

Sheet Évaluation des entreprises
A1: Théorie des jeux - Hauts salaires
A2: Jeu éducatif sur les salaires des dirigeants - Evaluation des entreprises
B4: Se reporter aux données de base | C4: Se reporter à l’année correspondante | D4: Se reporter aux données de base | E4: Rendements des capitaux (bruts, en %) * Capitalisation | F4: Se reporter à l’année correspondante | G4: Bénéfices (bruts, en CHF) - salaire annuel (en CHF) | H4: Bénéfices (nets, en CHF) / capitalisation | K4: Retour à l’entreprise A
K6: Passer aux graphiques
A8: 1re année | B8: Capitalisation | C8: CEO | D8: Rendements bruts des capitaux, en % | E8: Bénéfices bruts, en CHF | F8: Salaire annuel, en CHF | G8: Bénéfices nets, en CHF | H8: Rendements nets des capitaux, en %
A9: Entreprise A | B9: =INDEX('Données de base'!$B$14:$B$18,MATCH(A9,'Données de base'!$A$14:$A$18,0)) -> 5000000 | C9: =INDEX('1re année'!$H$38:$H$42,MATCH('Évaluation des entreprises'!A9,'1re année'!$I$38:$I$42,0)) -> Albert Adam | D9: =INDEX('Données de base'!$B$6:$B$10,MATCH(C9,'Données de base'!$A$6:$A$10,0)) -> 0.14 | E9: =D9*B9 -> 700000 | F9: =INDEX('1re année'!$J$38:$J$42,MATCH('Évaluation des entreprises'!A9,'1re année'!$I$38:$I$42,0)) -> 0 | G9: =E9-F9 -> 700000 | H9: =G9/B9 -> 0.14
A10: Entreprise B | B10: =INDEX('Données de base'!$B$14:$B$18,MATCH(A10,'Données de base'!$A$14:$A$18,0)) -> 10000000 | C10: =INDEX('1re année'!$H$38:$H$42,MATCH('Évaluation des entreprises'!A10,'1re année'!$I$38:$I$42,0)) ->  | D10: =INDEX('Données de base'!$B$6:$B$10,MATCH(C10,'Données de base'!$A$6:$A$10,0)) ->  | E10: =D10*B10 ->  | F10: =INDEX('1re année'!$J$38:$J$42,MATCH('Évaluation des entreprises'!A10,'1re année'!$I$38:$I$42,0)) ->  | G10: =E10-F10 ->  | H10: =G10/B10 -> 
A11: Entreprise C | B11: =INDEX('Données de base'!$B$14:$B$18,MATCH(A11,'Données de base'!$A$14:$A$18,0)) -> 30000000 | C11: =INDEX('1re année'!$H$38:$H$42,MATCH('Évaluation des entreprises'!A11,'1re année'!$I$38:$I$42,0)) ->  | D11: =INDEX('Données de base'!$B$6:$B$10,MATCH(C11,'Données de base'!$A$6:$A$10,0)) ->  | E11: =D11*B11 ->  | F11: =INDEX('1re année'!$J$38:$J$42,MATCH('Évaluation des entreprises'!A11,'1re année'!$I$38:$I$42,0)) ->  | G11: =E11-F11 ->  | H11: =G11/B11 -> 
A12: Entreprise D | B12: =INDEX('Données de base'!$B$14:$B$18,MATCH(A12,'Données de base'!$A$14:$A$18,0)) -> 400000000 | C12: =INDEX('1re année'!$H$38:$H$42,MATCH('Évaluation des entreprises'!A12,'1re année'!$I$38:$I$42,0)) ->  | D12: =INDEX('Données de base'!$B$6:$B$10,MATCH(C12,'Données de base'!$A$6:$A$10,0)) ->  | E12: =D12*B12 ->  | F12: =INDEX('1re année'!$J$38:$J$42,MATCH('Évaluation des entreprises'!A12,'1re année'!$I$38:$I$42,0)) ->  | G12: =E12-F12 ->  | H12: =G12/B12 -> 
A13: Entreprise E | B13: =INDEX('Données de base'!$B$14:$B$18,MATCH(A13,'Données de base'!$A$14:$A$18,0)) -> 7000000000 | C13: =INDEX('1re année'!$H$38:$H$42,MATCH('Évaluation des entreprises'!A13,'1re année'!$I$38:$I$42,0)) ->  | D13: =INDEX('Données de base'!$B$6:$B$10,MATCH(C13,'Données de base'!$A$6:$A$10,0)) ->  | E13: =D13*B13 ->  | F13: =INDEX('1re année'!$J$38:$J$42,MATCH('Évaluation des entreprises'!A13,'1re année'!$I$38:$I$42,0)) ->  | G13: =E13-F13 ->  | H13: =G13/B13 ->  | K13: Revenir à l’affectation des dirigeants la 1e année
A15: 2e année | B15: Capitalisation | C15: CEO | D15: Rendements bruts des capitaux, en % | E15: Bénéfices bruts, en CHF | F15: Salaire annuel, en CHF | G15: Bénéfices nets, en CHF | H15: Rendements nets des capitaux, en %
A16: Entreprise A | B16: =INDEX('Données de base'!$B$14:$B$18,MATCH(A16,'Données de base'!$A$14:$A$18,0)) -> 5000000 | C16: =INDEX('2e année'!$H$38:$H$42,MATCH('Évaluation des entreprises'!A16,'2e année'!$I$38:$I$42,0)) -> Albert Adam | D16: =INDEX('Données de base'!$B$6:$B$10,MATCH(C16,'Données de base'!$A$6:$A$10,0)) -> 0.14 | E16: =D16*B16 -> 700000 | F16: =INDEX('2e année'!$J$38:$J$42,MATCH('Évaluation des entreprises'!A16,'2e année'!$I$38:$I$42,0)) -> 0 | G16: =E16-F16 -> 700000 | H16: =G16/B16 -> 0.14
A17: Entreprise B | B17: =INDEX('Données de base'!$B$14:$B$18,MATCH(A17,'Données de base'!$A$14:$A$18,0)) -> 10000000 | C17: =INDEX('2e année'!$H$38:$H$42,MATCH('Évaluation des entreprises'!A17,'2e année'!$I$38:$I$42,0)) ->  | D17: =INDEX('Données de base'!$B$6:$B$10,MATCH(C17,'Données de base'!$A$6:$A$10,0)) ->  | E17: =D17*B17 ->  | F17: =INDEX('2e année'!$J$38:$J$42,MATCH('Évaluation des entreprises'!A17,'2e année'!$I$38:$I$42,0)) ->  | G17: =E17-F17 ->  | H17: =G17/B17 -> 
A18: Entreprise C | B18: =INDEX('Données de base'!$B$14:$B$18,MATCH(A18,'Données de base'!$A$14:$A$18,0)) -> 30000000 | C18: =INDEX('2e année'!$H$38:$H$42,MATCH('Évaluation des entreprises'!A18,'2e année'!$I$38:$I$42,0)) ->  | D18: =INDEX('Données de base'!$B$6:$B$10,MATCH(C18,'Données de base'!$A$6:$A$10,0)) ->  | E18: =D18*B18 ->  | F18: =INDEX('2e année'!$J$38:$J$42,MATCH('Évaluation des entreprises'!A18,'2e année'!$I$38:$I$42,0)) ->  | G18: =E18-F18 ->  | H18: =G18/B18 -> 
A19: Entreprise D | B19: =INDEX('Données de base'!$B$14:$B$18,MATCH(A19,'Données de base'!$A$14:$A$18,0)) -> 400000000 | C19: =INDEX('2e année'!$H$38:$H$42,MATCH('Évaluation des entreprises'!A19,'2e année'!$I$38:$I$42,0)) ->  | D19: =INDEX('Données de base'!$B$6:$B$10,MATCH(C19,'Données de base'!$A$6:$A$10,0)) ->  | E19: =D19*B19 ->  | F19: =INDEX('2e année'!$J$38:$J$42,MATCH('Évaluation des entreprises'!A19,'2e année'!$I$38:$I$42,0)) ->  | G19: =E19-F19 ->  | H19: =G19/B19 -> 
A20: Entreprise E | B20: =INDEX('Données de base'!$B$14:$B$18,MATCH(A20,'Données de base'!$A$14:$A$18,0)) -> 7000000000 | C20: =INDEX('2e année'!$H$38:$H$42,MATCH('Évaluation des entreprises'!A20,'2e année'!$I$38:$I$42,0)) ->  | D20: =INDEX('Données de base'!$B$6:$B$10,MATCH(C20,'Données de base'!$A$6:$A$10,0)) ->  | E20: =D20*B20 ->  | F20: =INDEX('2e année'!$J$38:$J$42,MATCH('Évaluation des entreprises'!A20,'2e année'!$I$38:$I$42,0)) ->  | G20: =E20-F20 ->  | H20: =G20/B20 ->  | K20: Revenir à l’affectation des dirigeants la 2e année
A22: 3e année | B22: Capitalisation | C22: CEO | D22: Rendements bruts des capitaux, en % | E22: Bénéfices bruts, en CHF | F22: Salaire annuel, en CHF | G22: Bénéfices nets, en CHF | H22: Rendements nets des capitaux, en %
A23: Entreprise A | B23: =INDEX('Données de base'!$B$14:$B$18,MATCH(A23,'Données de base'!$A$14:$A$18,0)) -> 5000000 | C23: =INDEX('3e année'!$H$38:$H$42,MATCH('Évaluation des entreprises'!A23,'3e année'!$I$38:$I$42,0)) -> Albert Adam | D23: =INDEX('Données de base'!$B$6:$B$10,MATCH(C23,'Données de base'!$A$6:$A$10,0)) -> 0.14 | E23: =D23*B23 -> 700000 | F23: =INDEX('3e année'!$J$38:$J$42,MATCH('Évaluation des entreprises'!A23,'3e année'!$I$38:$I$42,0)) -> 0 | G23: =E23-F23 -> 700000 | H23: =G23/B23 -> 0.14
A24: Entreprise B | B24: =INDEX('Données de base'!$B$14:$B$18,MATCH(A24,'Données de base'!$A$14:$A$18,0)) -> 10000000 | C24: =INDEX('3e année'!$H$38:$H$42,MATCH('Évaluation des entreprises'!A24,'3e année'!$I$38:$I$42,0)) ->  | D24: =INDEX('Données de base'!$B$6:$B$10,MATCH(C24,'Données de base'!$A$6:$A$10,0)) ->  | E24: =D24*B24 ->  | F24: =INDEX('3e année'!$J$38:$J$42,MATCH('Évaluation des entreprises'!A24,'3e année'!$I$38:$I$42,0)) ->  | G24: =E24-F24 ->  | H24: =G24/B24 -> 
A25: Entreprise C | B25: =INDEX('Données de base'!$B$14:$B$18,MATCH(A25,'Données de base'!$A$14:$A$18,0)) -> 30000000 | C25: =INDEX('3e année'!$H$38:$H$42,MATCH('Évaluation des entreprises'!A25,'3e année'!$I$38:$I$42,0)) ->  | D25: =INDEX('Données de base'!$B$6:$B$10,MATCH(C25,'Données de base'!$A$6:$A$10,0)) ->  | E25: =D25*B25 ->  | F25: =INDEX('3e année'!$J$38:$J$42,MATCH('Évaluation des entreprises'!A25,'3e année'!$I$38:$I$42,0)) ->  | G25: =E25-F25 ->  | H25: =G25/B25 -> 
A26: Entreprise D | B26: =INDEX('Données de base'!$B$14:$B$18,MATCH(A26,'Données de base'!$A$14:$A$18,0)) -> 400000000 | C26: =INDEX('3e année'!$H$38:$H$42,MATCH('Évaluation des entreprises'!A26,'3e année'!$I$38:$I$42,0)) ->  | D26: =INDEX('Données de base'!$B$6:$B$10,MATCH(C26,'Données de base'!$A$6:$A$10,0)) ->  | E26: =D26*B26 ->  | F26: =INDEX('3e année'!$J$38:$J$42,MATCH('Évaluation des entreprises'!A26,'3e année'!$I$38:$I$42,0)) ->  | G26: =E26-F26 ->  | H26: =G26/B26 -> 
A27: Entreprise E | B27: =INDEX('Données de base'!$B$14:$B$18,MATCH(A27,'Données de base'!$A$14:$A$18,0)) -> 7000000000 | C27: =INDEX('3e année'!$H$38:$H$42,MATCH('Évaluation des entreprises'!A27,'3e année'!$I$38:$I$42,0)) ->  | D27: =INDEX('Données de base'!$B$6:$B$10,MATCH(C27,'Données de base'!$A$6:$A$10,0)) ->  | E27: =D27*B27 ->  | F27: =INDEX('3e année'!$J$38:$J$42,MATCH('Évaluation des entreprises'!A27,'3e année'!$I$38:$I$42,0)) ->  | G27: =E27-F27 ->  | H27: =G27/B27 ->  | K27: Revenir à l’affectation des dirigeants la 3e année
A29: 4e année | B29: Capitalisation | C29: CEO | D29: Rendements bruts des capitaux, en % | E29: Bénéfices bruts, en CHF | F29: Salaire annuel, en CHF | G29: Bénéfices nets, en CHF | H29: Rendements nets des capitaux, en %
A30: Entreprise A | B30: =INDEX('Données de base'!$B$14:$B$18,MATCH(A30,'Données de base'!$A$14:$A$18,0)) -> 5000000 | C30: =INDEX('4e année'!$H$38:$H$42,MATCH('Évaluation des entreprises'!A30,'4e année'!$I$38:$I$42,0)) -> Albert Adam | D30: =INDEX('Données de base'!$B$6:$B$10,MATCH(C30,'Données de base'!$A$6:$A$10,0)) -> 0.14 | E30: =D30*B30 -> 700000 | F30: =INDEX('4e année'!$J$38:$J$42,MATCH('Évaluation des entreprises'!A30,'4e année'!$I$38:$I$42,0)) -> 0 | G30: =E30-F30 -> 700000 | H30: =G30/B30 -> 0.14
A31: Entreprise B | B31: =INDEX('Données de base'!$B$14:$B$18,MATCH(A31,'Données de base'!$A$14:$A$18,0)) -> 10000000 | C31: =INDEX('4e année'!$H$38:$H$42,MATCH('Évaluation des entreprises'!A31,'4e année'!$I$38:$I$42,0)) ->  | D31: =INDEX('Données de base'!$B$6:$B$10,MATCH(C31,'Données de base'!$A$6:$A$10,0)) ->  | E31: =D31*B31 ->  | F31: =INDEX('4e année'!$J$38:$J$42,MATCH('Évaluation des entreprises'!A31,'4e année'!$I$38:$I$42,0)) ->  | G31: =E31-F31 ->  | H31: =G31/B31 -> 
A32: Entreprise C | B32: =INDEX('Données de base'!$B$14:$B$18,MATCH(A32,'Données de base'!$A$14:$A$18,0)) -> 30000000 | C32: =INDEX('4e année'!$H$38:$H$42,MATCH('Évaluation des entreprises'!A32,'4e année'!$I$38:$I$42,0)) ->  | D32: =INDEX('Données de base'!$B$6:$B$10,MATCH(C32,'Données de base'!$A$6:$A$10,0)) ->  | E32: =D32*B32 ->  | F32: =INDEX('4e année'!$J$38:$J$42,MATCH('Évaluation des entreprises'!A32,'4e année'!$I$38:$I$42,0)) ->  | G32: =E32-F32 ->  | H32: =G32/B32 -> 
A33: Entreprise D | B33: =INDEX('Données de base'!$B$14:$B$18,MATCH(A33,'Données de base'!$A$14:$A$18,0)) -> 400000000 | C33: =INDEX('4e année'!$H$38:$H$42,MATCH('Évaluation des entreprises'!A33,'4e année'!$I$38:$I$42,0)) ->  | D33: =INDEX('Données de base'!$B$6:$B$10,MATCH(C33,'Données de base'!$A$6:$A$10,0)) ->  | E33: =D33*B33 ->  | F33: =INDEX('4e année'!$J$38:$J$42,MATCH('Évaluation des entreprises'!A33,'4e année'!$I$38:$I$42,0)) ->  | G33: =E33-F33 ->  | H33: =G33/B33 -> 
A34: Entreprise E | B34: =INDEX('Données de base'!$B$14:$B$18,MATCH(A34,'Données de base'!$A$14:$A$18,0)) -> 7000000000 | C34: =INDEX('4e année'!$H$38:$H$42,MATCH('Évaluation des entreprises'!A34,'4e année'!$I$38:$I$42,0)) ->  | D34: =INDEX('Données de base'!$B$6:$B$10,MATCH(C34,'Données de base'!$A$6:$A$10,0)) ->  | E34: =D34*B34 ->  | F34: =INDEX('4e année'!$J$38:$J$42,MATCH('Évaluation des entreprises'!A34,'4e année'!$I$38:$I$42,0)) ->  | G34: =E34-F34 ->  | H34: =G34/B34 ->  | K34: Revenir à l’affectation des dirigeants la 4e année

Sheet Graphiques
A1: Théorie des jeux - Hauts salaires
A2: Jeu éducatif sur les salaires des dirigeants - Graphiques

Sheet Propositions de solutions
A1: Théorie des jeux - Hauts salaires
A2: Jeu éducatif sur les salaires des dirigeants - Propositions de solutions (cf. Exercice 2 du set d’exercices)
B4: Se reporter aux données de base | C4: Se reporter à la solution ci-dessous | D4: Se reporter aux données de base | E4: Rendements des capitaux (bruts, en %) * Capitalisation | F4: Se reporter à la solution ci-dessous | G4: Bénéfices (bruts, en CHF) - salaire annuel (en CHF) | H4: Bénéfices (nets, en CHF) / capitalisation
B7: Capitalisation | C7: CEO | D7: Rendements bruts des capitaux, en % | E7: Bénéfices bruts, en CHF | F7: Salaire annuel, en CHF | G7: Bénéfices nets, en CHF | H7: Rendements nets des capitaux, en %
A8: Entreprise A | B8: =INDEX('Données de base'!$B$14:$B$18,MATCH(A8,'Données de base'!$A$14:$A$18,0)) -> 5000000 | C8: Cadre dirigeant/-e normal/-e | D8: 0.1 | E8: =D8*B8 -> 500000 | F8: 300000 | G8: =E8-F8 -> 200000 | H8: =G8/B8 -> 0.04
A9: Entreprise B | B9: =INDEX('Données de base'!$B$14:$B$18,MATCH(A9,'Données de base'!$A$14:$A$18,0)) -> 10000000 | C9: Dieter Dim | D9: 0.11 | E9: =D9*B9 -> 1100000 | F9: =C24 -> 350000 | G9: =E9-F9 -> 750000 | H9: =G9/B9 -> 0.075
A10: Entreprise C | B10: =INDEX('Données de base'!$B$14:$B$18,MATCH(A10,'Données de base'!$A$14:$A$18,0)) -> 30000000 | C10: Claudia Custer | D10: 0.12 | E10: =D10*B10 -> 3600000 | F10: =D25 -> 500000 | G10: =E10-F10 -> 3100000 | H10: =G10/B10 -> 0.1033333333
A11: Entreprise D | B11: =INDEX('Données de base'!$B$14:$B$18,MATCH(A11,'Données de base'!$A$14:$A$18,0)) -> 400000000 | C11: Bertha Binnig | D11: 0.13 | E11: =D11*B11 -> 52000000 | F11: =E26 -> 1200000 | G11: =E11-F11 -> 50800000 | H11: =G11/B11 -> 0.127
A12: Entreprise E | B12: =INDEX('Données de base'!$B$14:$B$18,MATCH(A12,'Données de base'!$A$14:$A$18,0)) -> 7000000000 | C12: Albert Adam | D12: 0.14 | E12: =D12*B12 -> 980000000 | F12: =F27 -> 16300000 | G12: =E12-F12 -> 963700000 | H12: =G12/B12 -> 0.1376714286
B14: Salaire maximal envisageable pour +1% de bénéfices
A16: Entreprise A | B16: =B8*0.01 -> 50000
A17: Entreprise B | B17: =B9*0.01 -> 100000
A18: Entreprise C | B18: =B10*0.01 -> 300000
A19: Entreprise D | B19: =B11*0.01 -> 4000000
A20: Entreprise E | B20: =B12*0.01 -> 70000000
B22: Salaire maximal envisageable pour les dirigeants
B23: Cadre dirigeant/-e normal/-e | C23: Dieter Diem | D23: Claudia Custer | E23: Bertha Binnig | F23: Albert Adam
A24: Entreprise A | B24: 300000 | C24: =B24+B16 -> 350000 | D24: =B24+2*B16 -> 400000 | E24: =B24+3*B16 -> 450000 | F24: =B24+4*B16 -> 500000
A25: Entreprise B | B25: 300000 | C25: =B25+B17 -> 400000 | D25: =B25+2*B17 -> 500000 | E25: =B25+3*B17 -> 600000 | F25: =B25+4*B17 -> 700000
A26: Entreprise C | B26: 300000 | C26: =B26+B18 -> 600000 | D26: =B26+2*B18 -> 900000 | E26: =B26+3*B18 -> 1200000 | F26: =B26+4*B18 -> 1500000
A27: Entreprise D | B27: 300000 | C27: =B27+B19 -> 4300000 | D27: =B27+2*B19 -> 8300000 | E27: =B27+3*B19 -> 12300000 | F27: =B27+4*B19 -> 16300000
A28: Entreprise E | B28: 300000 | C28: =B28+B20 -> 70300000 | D28: =B28+2*B20 -> 140300000 | E28: =B28+3*B20 -> 210300000 | F28: =B28+4*B20 -> 280300000
A30: Solution:
A31: L’entreprise A engage un cadre dirigeant/-e «normal/-e» à 0,3 mio.
A32: L’entreprise B engage Dieter Dim à 0,35 mio.
A33: L’entreprise C engage Claudia Custer à 0,5 mio.
A34: L’entreprise D engage Bertha Binnig à 1,2 mio.
A35: L’entreprise E engage Albert Adam à 16,3 mio.
